fUSD/lending_fUSD_20240116
["ID","MTS","AMOUNT","RATE_DAILY","PERIOD"]
[311773990,1705384272603,-3295.05728793,0.00022999,2]
[311773991,1705384272612,-514.13,0.00022999,2]
[311773992,1705384272621,-514.13,0.00022999,2]
[311773993,1705384272631,-514.13,0.00022999,2]
[311773994,1705384272640,-514.13,0.00022999,2]
[311773995,1705384272649,-514.13,0.00022999,2]
[311773996,1705384272658,-514.13,0.00022999,2]
[311773997,1705384272668,-514.13,0.00022999,2]
[311773998,1705384272677,-514.13,0.00022999,2]
[311773999,1705384272687,-514.26491375,0.00022999,2]
[311774000,1705384272697,-300.0,0.00022999,2]
[311774001,1705384272706,-300.0,0.00022999,2]
[311774002,1705384272715,-300.0,0.00022999,2]
[311774003,1705384272724,-300.0,0.00022999,2]
[311774004,1705384272733,-310.05177956,0.00022999,2]
[311774005,1705384272742,-300.0,0.00022999,2]
[311774006,1705384272751,-300.0,0.00022999,2]
[311774007,1705384272760,-295000.12704384,0.00023,2]
[311774008,1705384272769,-1442050.17129143,0.00023,2]
[311774009,1705384273378,-23033.44401692,0.00023,2]
[311774010,1705384273394,-679.21665167,0.00023,2]
[311774011,1705384273404,-7626.75686841,0.00023,2]
[311774012,1705384273429,-663.71140911,0.00023,2]
[311774013,1705384274319,-503.65,0.00022697,2]
[311774014,1705384274329,-445.18827011,0.00022698,2]
[311774015,1705384274586,-533.73,0.00022147,2]
[311774016,1705384274596,-350.06496145,0.0002215,2]
[311774017,1705384274661,-149.93503855,0.0002215,2]
[311774018,1705384274671,-128.52870461,0.00022698,2]
[311774019,1705384274683,-656.23302528,0.00022698,2]
[311774020,1705384274692,-914.57,0.00022971,2]
[311774021,1705384274702,-626.79,0.00022971,2]
[311774022,1705384274711,-503.65,0.00022971,2]
[311774023,1705384274720,-87.70087472,0.00022972,2]
[311774024,1705384274732,-476.38041751,0.00022972,2]
[311774025,1705384276362,-409.58870777,0.00022972,2]
[311774026,1705384276371,-786.77017257,0.00022972,2]
[311774027,1705384276890,-500.0,0.00022424,2]
[311774028,1705384276900,-443.17982743,0.00022972,2]
[311774029,1705384276909,-140085.3982241,0.00023,2]
[311774030,1705384276944,-408.4,0.000225,2]
[311774031,1705384276953,-418.24,0.000225,2]
[311774032,1705384276962,-5112.22367589,0.00023,2]
[311774033,1705384276973,-2649.48334826,0.00023,2]
[311774034,1705384278651,-254.79687946,0.00022147,2]
[311774035,1705384278662,-245.20312054,0.00022147,2]
[311774036,1705384278671,-500.0,0.0002215,2]
[311774037,1705384278680,-150.99,0.00022182,2]
[311774038,1705384278689,-258.42994065,0.00022421,2]
[311774039,1705384278702,-39.35005935,0.00022421,2]
[311774040,1705384278711,-304.01670024,0.00022424,2]
[311774041,1705384278720,-150.0,0.000225,2]
[311774042,1705384278729,-150.0,0.000225,2]
[311774043,1705384278738,-150.0,0.000225,2]
[311774044,1705384278747,-294.22,0.000225,2]
[311774045,1705384278756,-314.46,0.000225,2]
[311774046,1705384278765,-25872.74282109,0.00023,2]
[311774047,1705384278809,-535.60779987,0.00023,2]
[311774048,1705384278820,-1000.0,0.00023,2]
[311774049,1705384288241,205.8403,0.00022046,2]
[311774050,1705384288446,1709.64,0.00021823,2]
[311774051,1705384291259,774.2999,0.00022046,2]
[311774052,1705384293065,2000.0,0.00021771,2]
[311774053,1705384317842,155.0,0.00022,3]
[311774054,1705384322887,560.68,0.00021753,2]
[311774055,1705384330099,23900.0,0.00021745,2]
[311774056,1705384336546,250.0,0.0002205,2]
[311774058,1705384375826,250.0,0.00021918,2]
[311774059,1705384386159,159.51,0.00021728,2]
[311774060,1705384386384,159.51,0.00021895,2]
[311774061,1705384386612,159.51,0.00022062,2]
[311774065,1705384444419,207.0,0.00021182,2]
[311774067,1705384515363,351.71,0.00021647,2]
[311774068,1705384540276,157.79,0.00021809,2]
[311774069,1705384614153,250.0,0.00021609,2]
[311774070,1705384670411,186940.0080847,0.00022,2]
[311774071,1705384673083,194.73,0.00019675,2]
[311774072,1705384673297,194.73,0.00021939,2]
[311774073,1705384676077,112301.47801962,0.00022,2]
[311774074,1705384720446,338.65,0.00021584,2]
[311774099,1705384777601,18556.98,0.00021535,2]
[311774185,1705384848058,159.17,0.00021519,2]
[311774186,1705384848472,159.17,0.00021698,2]
[311774187,1705384848668,159.17,0.00021877,2]
[311774188,1705384849095,159.17,0.00022057,2]
[311774189,1705384855535,250.0,0.00021918,2]
[311774191,1705384868642,1294.57,0.00021469,2]
[311774197,1705384936672,248.70803496,0.00021924,2]
[311774199,1705384953402,853.67862422,0.00021,2]
[311774200,1705384955597,338.32,0.0002149,2]
[311774201,1705384959286,5985.1671387,0.000221,2]
[311774305,1705384987369,1000.0,0.00021455,2]
[311774306,1705384988382,157.03,0.00021616,2]
[311774314,1705385123973,230.57,0.0001953,2]
[311774315,1705385124052,230.57,0.00021794,2]
[311774316,1705385125428,172.92789735,0.00022046,2]
[311774317,1705385128657,-155.81662201,0.00036523,120]
[311774318,1705385128680,-500.0,0.00036523,120]
[311774319,1705385128701,-299.67922933,0.00036523,30]
[311774320,1705385128722,-1311.02766699,0.00036523,120]
[311774321,1705385128744,-316.43271009,0.00036523,30]
[311774322,1705385128766,-153.39537694,0.00036523,120]
[311774323,1705385128787,-284.98442655,0.00036523,120]
[311774324,1705385128809,-11998.21862612,0.00036523,120]
[311774325,1705385128832,-153.0065707,0.00036523,120]
[311774326,1705385128855,-451.51360914,0.00036523,120]
[311774327,1705385128876,-309.81411783,0.00036523,30]
[311774328,1705385128898,-301.97510233,0.00036523,120]
[311774329,1705385128921,-165.95631394,0.00036523,30]
[311774330,1705385128943,-1001.78756069,0.00036523,60]
[311774331,1705385128965,-601.735008,0.00036523,120]
[311774332,1705385128987,-20276.93537906,0.00036523,32]
[311774333,1705385129010,-1000.0,0.00036523,120]
[311774334,1705385129032,-615.84360395,0.00036523,120]
[311774335,1705385129054,-674.99999802,0.00036523,120]
[311774336,1705385129076,-2534.70033574,0.00036523,120]
[311774337,1705385129099,-70720.85722858,0.00036523,60]
[311774338,1705385129123,-1135.65889548,0.00036523,30]
[311774339,1705385129145,-260.20354671,0.00036523,30]
[311774340,1705385129166,-194113.20988371,0.00036523,120]
[311774341,1705385129188,-3654.66008551,0.00036523,120]
[311774342,1705385129210,-409.21633107,0.00036523,30]
[311774343,1705385129232,-3294.84,0.00036523,30]
[311774344,1705385129264,-300.0,0.00036523,57]
[311774345,1705385129293,-490000.0,0.00036523,30]
[311774346,1705385129317,-1067.8821708,0.00036523,65]
[311774347,1705385129341,-504.31417712,0.00036523,90]
[311774348,1705385129364,-229.98750081,0.00036523,120]
[311774349,1705385129388,-2000.0,0.00036523,31]
[311774350,1705385129410,-117619.49031683,0.00036523,120]
[311774351,1705385129433,-172.15921457,0.00036523,30]
[311774352,1705385129457,-47335.45808122,0.00036523,120]
[311774353,1705385129480,-1453.8054489,0.00036523,120]
[311774354,1705385129502,-10000.0,0.00036523,120]
[311774355,1705385129527,-10000.0,0.00036523,120]
[311774356,1705385129550,-674.40485161,0.00036523,30]
[311774357,1705385129573,-151.68222645,0.00036523,120]
[311774358,1705385129597,-167.06046796,0.00036523,120]
[311774359,1705385129622,-165.22222037,0.00036523,120]
[311774360,1705385129647,-519.1237228,0.00036523,30]
[311774361,1705385129670,-1638.53230381,0.00036523,30]
[311774362,1705385129693,-504.21313907,0.00036523,120]
[311774363,1705385129717,-162.97719743,0.00036523,120]
[311774364,1705385129743,-549.80927983,0.00036523,120]
[311774365,1705385129768,-183.78918102,0.00036523,120]
[311774366,1705385129792,-10000.0,0.00036523,120]
[311774367,1705385129814,-264.9178479,0.00036523,30]
[311774368,1705385129846,-752.0,0.00036523,120]
[311774369,1705385129869,-212.35475517,0.00036523,30]
[311774370,1705385129893,-25000.0,0.00036523,30]
[311774371,1705385129917,-2000.0,0.00036523,30]
[311774372,1705385129943,-2035.52699876,0.00036523,30]
[311774373,1705385129966,-7000.0,0.00036523,120]
[311774374,1705385129991,-212.88,0.00036523,30]
[311774375,1705385130015,-1969.462205,0.00036523,30]
[311774376,1705385130039,-1895.954319,0.00036523,30]
[311774377,1705385130066,-305.480553,0.00036523,30]
[311774378,1705385131553,172.92789734,0.00022054,2]
[311774379,1705385135436,172.92789734,0.00022062,2]
[311774380,1705385140448,172.92789734,0.0002207,2]
[311774381,1705385145105,-556.76345391,0.0003,30]
[311774382,1705385145142,-300.0,0.00031,30]
[311774383,1705385145173,-1050.0,0.00031506,32]
[311774384,1705385145202,-473.36364108,0.00031506,37]
[311774385,1705385145233,-151.0,0.00031533,120]
[311774386,1705385145262,-262.0,0.000319,120]
[311774387,1705385145295,-300.0,0.00032,33]
[311774388,1705385145326,-151.0,0.00032176,30]
[311774389,1705385145378,-600.0,0.00033,34]
[311774390,1705385145416,-600.0,0.00034,35]
[311774391,1705385145443,-250.0,0.00034,120]
[311774392,1705385145478,-376.04106656,0.000345,120]
[311774393,1705385145506,-31022.12489226,0.0003468,30]
[311774394,1705385145534,-50540.16334968,0.000348,30]
[311774395,1705385145563,-879.27805741,0.0003484,30]
[311774396,1705385145592,-180.52597597,0.0003493,30]
[311774397,1705385145620,-19987.06201095,0.00035,30]
[311774398,1705385145647,-2985.92463384,0.00035,30]
[311774399,1705385145674,-1800.0,0.00035,30]
[311774400,1705385145700,-1039.0,0.00035,30]
[311774401,1705385145728,-600.0,0.00035,36]
[311774402,1705385145755,-1169.52032856,0.00035,30]
[311774403,1705385145782,-873.82205036,0.00035,30]
[311774404,1705385145808,-393.71952335,0.00035,120]
[311774405,1705385145834,-250.0,0.00035,120]
[311774406,1705385145863,-518.0,0.00035,30]
[311774407,1705385145895,-155.62980233,0.000355,30]
[311774408,1705385145926,-227.89977343,0.000355,30]
[311774409,1705385145960,-4000.0,0.00035616,30]
[311774410,1705385145990,-600.0,0.00036,37]
[311774411,1705385146018,-500.0,0.00036,120]
[311774412,1705385146044,-2000.0,0.00036,120]
[311774413,1705385146070,-11342.0,0.00036,44]
[311774414,1705385146105,-150.0,0.00036438,31]
[311774415,1705385146132,-150.0,0.00036438,41]
[311774416,1705385146160,-150.0,0.00036438,50]
[311774417,1705385146185,-150.0,0.00036438,60]
[311774418,1705385146212,-150.0,0.00036438,70]
[311774419,1705385146238,-150.0,0.00036438,80]
[311774420,1705385146282,-150.0,0.00036438,90]
[311774421,1705385146321,-150.0,0.00036498,120]
[311774422,1705385146374,-150.0,0.00036595,120]
[311774423,1705385146408,-10000.0,0.000369,30]
[311774424,1705385146440,-500.0,0.00037,120]
[311774425,1705385146470,-600.0,0.00037,38]
[311774426,1705385146499,-150.0,0.00037,30]
[311774427,1705385146528,-150.0,0.00037053,120]
[311774428,1705385146560,-150.0,0.000372,30]
[311774429,1705385146589,-150.0,0.000374,30]
[311774430,1705385146619,-195.1542248,0.000376,30]
[311774431,1705385146650,-150.0,0.00037676,120]
[311774432,1705385146681,-162.06719808,0.000378,30]
[311774433,1705385146708,-999.99999,0.000378,30]
[311774434,1705385146736,-246.0,0.0003797,120]
[311774435,1705385146769,-246.0,0.0003797,120]
[311774436,1705385146796,-150.5,0.0003797,120]
[311774437,1705385146822,-150.5,0.0003797,120]
[311774438,1705385146851,-12643.0,0.0003797,120]
[311774439,1705385146879,-12643.0,0.0003797,120]
[311774440,1705385146905,-179.47,0.0003797,120]
[311774441,1705385146931,-1549.0,0.0003797,120]
[311774442,1705385146959,-1549.0,0.0003797,120]
[311774443,1705385146986,-240.0,0.0003797,30]
[311774444,1705385147012,-240.0,0.0003797,30]
[311774445,1705385147039,-230.64,0.0003797,120]
[311774446,1705385147067,-246.0,0.0003798,120]
[311774447,1705385147093,-246.0,0.0003798,120]
[311774448,1705385147119,-246.0,0.0003798,120]
[311774449,1705385147145,-249.12,0.0003798,120]
[311774450,1705385147171,-150.5,0.0003798,120]
[311774451,1705385147198,-150.5,0.0003798,120]
[311774452,1705385147224,-12643.0,0.0003798,120]
[311774453,1705385147252,-12643.0,0.0003798,120]
[311774454,1705385147278,-12643.0,0.0003798,120]
[311774455,1705385147307,-12643.07,0.0003798,120]
[311774456,1705385147336,-150.5,0.0003798,120]
[311774457,1705385147362,-1549.0,0.0003798,120]
[311774458,1705385147389,-1549.0,0.0003798,120]
[311774459,1705385148107,-1549.0,0.0003798,120]
[311774460,1705385148150,-1554.97,0.0003798,120]
[311774461,1705385148173,-240.0,0.0003798,30]
[311774462,1705385148197,-240.0,0.0003798,30]
[311774463,1705385148220,-240.0,0.0003798,30]
[311774464,1705385148243,-245.65,0.0003798,30]
[311774465,1705385148268,-150.5,0.0003798,120]
[311774466,1705385148292,-246.0,0.0003799,120]
[311774467,1705385148315,-246.0,0.0003799,120]
[311774468,1705385148345,-246.0,0.0003799,120]
[311774469,1705385148371,-246.0,0.0003799,120]
[311774470,1705385148394,-150.5,0.0003799,120]
[311774471,1705385148418,-224.05,0.0003799,120]
[311774472,1705385148441,-300.77,0.0003799,120]
[311774473,1705385148464,-150.5,0.0003799,120]
[311774474,1705385148486,-201.77,0.0003799,120]
[311774475,1705385148510,-12643.0,0.0003799,120]
[311774476,1705385148537,-12643.0,0.0003799,120]
[311774477,1705385148560,-12643.0,0.0003799,120]
[311774478,1705385148584,-12643.0,0.0003799,120]
[311774479,1705385148609,-150.5,0.0003799,120]
[311774480,1705385148633,-1549.0,0.0003799,120]
[311774481,1705385148656,-1549.0,0.0003799,120]
[311774482,1705385148679,-1549.0,0.0003799,120]
[311774483,1705385148701,-1549.0,0.0003799,120]
[311774484,1705385148725,-240.0,0.0003799,30]
[311774485,1705385148747,-240.0,0.0003799,30]
[311774486,1705385148770,-240.0,0.0003799,30]
[311774487,1705385148793,-240.0,0.0003799,30]
[311774488,1705385148815,-150.5,0.0003799,120]
[311774489,1705385148841,-204.83,0.0003799,120]
[311774490,1705385148864,-500.0,0.00038,120]
[311774491,1705385148887,-611.79993361,0.00038,30]
[311774492,1705385148911,-600.0,0.00038,39]
[311774493,1705385148939,-1752.7481939,0.00038356,30]
[311774494,1705385148965,-150.0,0.00038497,120]
[311774495,1705385148989,-150.0,0.00038789,120]
[311774496,1705385149012,-3757.15164422,0.000388,30]
[311774497,1705385149037,-15477.1998468,0.00039,40]
[311774498,1705385149060,-600.0,0.00039,120]
[311774499,1705385149082,-3173.49593119,0.00039,120]
[311774500,1705385149105,-9000.0,0.00039,44]
[311774501,1705385149130,-616.0,0.00039,120]
[311774502,1705385149153,-600.0,0.00039,40]
[311774503,1705385149175,-6661.0456663,0.00039,120]
[311774504,1705385149198,-7935.96881725,0.00039,30]
[311774505,1705385149221,-216.61900651,0.0003922,30]
[311774506,1705385149246,-2000.0,0.00039424,31]
[311774507,1705385149270,-5122.955,0.000395,30]
[311774508,1705385149293,-157.7778206,0.000397,30]
[311774509,1705385149316,-8601.1,0.000397,30]
[311774510,1705385149340,-8601.1,0.000397,30]
[311774511,1705385149363,-8601.1,0.000397,30]
[311774512,1705385149386,-50465.45844431,0.000398,30]
[311774513,1705385149409,-2500.00100099,0.0003988,39]
[311774514,1705385149433,-3848.02735378,0.000399,30]
[311774515,1705385149460,-1066.30019641,0.000399,120]
[311774516,1705385149488,-3228.31450634,0.0004,30]
[311774517,1705385149511,-159.29032926,0.0004,30]
[311774518,1705385149535,-372.26823252,0.0004,30]
[311774519,1705385149560,-350.0,0.0004,120]
[311774520,1705385149582,-400.0,0.0004,120]
[311774521,1705385149605,-1167.75475932,0.0004,120]
[311774522,1705385149627,-1446.0,0.0004,30]
[311774523,1705385149650,-188.97192335,0.0004,30]
[311774524,1705385149677,-240.42893879,0.0004,30]
[311774525,1705385149789,-1735.37286464,0.0004,30]
[311774526,1705385149814,-1000.0,0.0004,30]
[311774527,1705385149839,-1000.0,0.0004,30]
[311774528,1705385149862,-1000.0,0.0004,30]
[311774529,1705385149885,-1000.0,0.0004,30]
[311774530,1705385149907,-1000.0,0.0004,30]
[311774531,1705385149932,-584.56261297,0.0004,30]
[311774532,1705385149955,-1915.32337782,0.0004,120]
[311774533,1705385149978,-249.999999,0.0004,30]
[311774534,1705385150002,-1097.97528251,0.0004,120]
[311774535,1705385150025,-1015.63653197,0.0004,30]
[311774536,1705385150053,-3476.63833182,0.0004,30]
[311774537,1705385150076,-2359.98735827,0.0004,30]
[311774538,1705385150099,-787.32387168,0.0004,120]
[311774539,1705385150123,-1151.04888839,0.0004,30]
[311774540,1705385150148,-600.0,0.0004,41]
[311774541,1705385150172,-163.59841905,0.0004,30]
[311774542,1705385150195,-868.82156004,0.0004,30]
[311774543,1705385150218,-304.0,0.0004,30]
[311774544,1705385150242,-500.0,0.0004,30]
[311774545,1705385150265,-516.63,0.0004,30]
[311774546,1705385150287,-500.0,0.0004,30]
[311774547,1705385150310,-500.0,0.0004,30]
[311774548,1705385150334,-500.0,0.0004,30]
[311774549,1705385150358,-500.0,0.0004,30]
[311774550,1705385150380,-21901.47726615,0.0004,30]
[311774551,1705385150403,-1222.82370173,0.0004,30]
[311774552,1705385150426,-157.0,0.0004,30]
[311774553,1705385150449,-347.53189057,0.0004,30]
[311774554,1705385150472,-1774.0,0.0004,30]
[311774555,1705385150495,-250.0,0.0004,120]
[311774556,1705385150522,-1208.0,0.00040267,30]
[311774557,1705385150545,-339.25,0.00040368,60]
[311774558,1705385150568,-172.0,0.0004044,50]
[311774559,1705385150593,-400.0,0.000406,30]
[311774560,1705385150618,-339.25,0.00040633,60]
[311774561,1705385150640,-150.0,0.0004069,120]
[311774562,1705385150665,-2500.0,0.0004088,37]
[311774563,1705385150688,-339.25,0.00040898,60]
[311774564,1705385150711,-400.0,0.00040932,120]
[311774565,1705385150735,-430.21478053,0.00041,30]
[311774566,1705385150756,-311.0,0.00041,120]
[311774567,1705385150779,-1000.0,0.00041,120]
[311774568,1705385150801,-4087.0,0.00041,90]
[311774569,1705385150826,-600.0,0.00041,42]
[311774570,1705385150853,-130093.54,0.00041,30]
[311774571,1705385150876,-157.0,0.00041,30]
[311774572,1705385150899,-12609.0,0.00041,30]
[311774573,1705385150924,-350.0,0.00041014,120]
[311774574,1705385150947,-150.0,0.00041023,120]
[311774575,1705385150969,-384.32618362,0.00041042,100]
[311774576,1705385150993,-510.0,0.00041095,120]
[311774577,1705385151020,-1389.70379959,0.00041095,120]
[311774578,1705385151043,-500.0,0.00041095,30]
[311774579,1705385151066,-500.0,0.00041095,30]
[311774580,1705385151090,-500.0,0.00041095,30]
[311774581,1705385151118,-600.11015509,0.00041095,30]
[311774582,1705385151142,-1000.0,0.00041095,30]
[311774583,1705385151165,-595.99433741,0.00041095,30]
[311774584,1705385151202,-400.0,0.000411,30]
[311774585,1705385151232,-339.25,0.00041163,60]
[311774586,1705385151257,-510.0,0.00041369,120]
[311774587,1705385151281,-1000.0,0.0004137,120]
[311774588,1705385151310,-339.25,0.00041428,60]
[311774589,1705385151333,-2500.0,0.0004148,40]
[311774590,1705385151356,-5000.0,0.000415,35]
[311774591,1705385151381,-400.0,0.000416,31]
[311774592,1705385151404,-510.0,0.00041643,120]
[311774593,1705385151429,-766.66860845,0.00041677,120]
[311774594,1705385151453,-339.25,0.00041693,60]
[311774595,1705385151478,-1000.0,0.000418,30]
[311774596,1705385151501,-1000.0,0.000418,30]
[311774597,1705385151524,-1000.0,0.000418,30]
[311774598,1705385151547,-1000.0,0.000418,30]
[311774599,1705385151571,-1000.0,0.000418,30]
[311774600,1705385151595,-400.0,0.00041863,120]
[311774601,1705385151619,-856.41030783,0.000419,60]
[311774602,1705385151643,-278.8344279,0.000419,60]
[311774603,1705385151667,-58368.42625388,0.000419,45]
[311774604,1705385151691,-510.0,0.00041917,120]
[311774605,1705385151716,-150.0,0.0004192,120]
[311774606,1705385151740,-339.25,0.00041958,60]
[311774607,1705385151764,-501.38880694,0.00042,30]
[311774608,1705385151788,-600.0,0.00042,43]
[311774609,1705385151811,-240.99967135,0.00042,120]
[311774610,1705385151836,-3957.0,0.00042,90]
[311774611,1705385151859,-635.39502452,0.00042,120]
[311774612,1705385151882,-1595.30483952,0.00042,60]
[311774613,1705385151905,-1404.1686123,0.00042,30]
[311774614,1705385151929,-1562.76170043,0.00042,120]
[311774615,1705385151954,-36895.24838497,0.00042,30]
[311774616,1705385151976,-2000.0,0.00042,90]
[311774617,1705385151998,-271.47906409,0.00042,30]
[311774618,1705385152021,-360.7,0.00042,30]
[311774619,1705385152044,-197.42915056,0.00042,30]
[311774620,1705385152068,-1100.0,0.00042,30]
[311774621,1705385152094,-395.537683,0.00042,30]
[311774622,1705385152117,-350.0,0.00042027,120]
[311774623,1705385152141,-400.0,0.000421,31]
[311774624,1705385152166,-510.0,0.00042191,120]
[311774625,1705385152190,-339.25,0.00042223,60]
[311774626,1705385152213,-161.0,0.00042288,90]
[311774627,1705385152240,-185.0,0.00042288,90]
[311774628,1705385152399,-183.0,0.0004246,54]
[311774629,1705385152423,-510.0,0.00042465,120]
[311774630,1705385152448,-200.0,0.000425,30]
[311774631,1705385152471,-320000.0,0.000425,30]
[311774632,1705385152493,-850.0,0.000425,120]
[311774633,1705385152516,-348.01047431,0.00042546,120]
[311774634,1705385152539,-203.09536305,0.000426,120]
[311774635,1705385152564,-407.354567,0.000426,32]
[311774636,1705385152587,-2317.17538154,0.00042687,30]
[311774637,1705385152610,-580.10030004,0.00042725,90]
[311774638,1705385152633,-510.0,0.00042739,120]
[311774639,1705385152656,-2500.0,0.0004278,42]
[311774640,1705385152679,-400.0,0.00042795,120]
[311774641,1705385152706,-600.0,0.00043,44]
[311774642,1705385152728,-446.55209045,0.00043,120]
[311774643,1705385152751,-1008.61285064,0.00043,30]
[311774644,1705385152774,-13293.32124838,0.00043,120]
[311774645,1705385152796,-1000.0,0.00043,90]
[311774646,1705385152818,-10099.55483678,0.00043,30]
[311774647,1705385152844,-1000.0,0.00043,120]
[311774648,1705385152867,-552.87396231,0.00043,30]
[311774649,1705385152890,-510.0,0.00043013,120]
[311774650,1705385152912,-1100.0,0.00043014,30]
[311774651,1705385152935,-350.0,0.00043041,120]
[311774652,1705385152961,-2154.49608934,0.0004315,120]
[311774653,1705385152986,-510.0,0.00043287,120]
[311774654,1705385153009,-201.42591571,0.000433,30]
[311774655,1705385153031,-162.62156238,0.00043381,30]
[311774656,1705385153054,-272.63832267,0.00043481,30]
[311774657,1705385153077,-466.52439563,0.00043481,30]
[311774658,1705385153102,-298.40526431,0.00043481,30]
[311774659,1705385153131,-5000.0,0.000435,40]
[311774660,1705385153155,-646.32368406,0.000435,120]
[311774661,1705385153181,-500000.0,0.000435,38]
[311774662,1705385153207,-510.0,0.00043561,120]
[311774663,1705385153232,-11313.38623082,0.000437,30]
[311774664,1705385153257,-400.0,0.00043726,120]
[311774665,1705385153281,-2500.0,0.0004374,45]
[311774666,1705385153305,-182.0,0.0004378,120]
[311774667,1705385153328,-512.99445814,0.00043798,60]
[311774668,1705385153352,-1267.42483054,0.00043798,60]
[311774669,1705385153375,-1060.38,0.00043835,30]
[311774670,1705385153398,-510.0,0.00043835,120]
[311774671,1705385153422,-3000.0,0.00043835,120]
[311774672,1705385153446,-187.60069709,0.0004395,120]
[311774673,1705385153470,-1696.439,0.0004399,30]
[311774674,1705385153493,-721.18358846,0.0004399,120]
[311774675,1705385153518,-411.97938945,0.00043999,30]
[311774676,1705385153541,-1500.0,0.00044,30]
[311774677,1705385153564,-435.05563487,0.00044,30]
[311774678,1705385153590,-514.20793732,0.00044,120]
[311774679,1705385153612,-1724.55035812,0.00044,30]
[311774680,1705385153635,-347.3868406,0.00044,30]
[311774681,1705385153660,-1000.0,0.00044,120]
[311774682,1705385153683,-2000.0,0.00044,30]
[311774683,1705385153707,-600.0,0.00044,45]
[311774684,1705385153730,-4942.75746203,0.00044,45]
[311774685,1705385153754,-10000.0,0.00044,90]
[311774686,1705385153779,-184.78924776,0.00044,60]
[311774687,1705385153801,-185.81050148,0.00044,30]
[311774688,1705385153823,-200.0,0.00044,30]
[311774689,1705385153848,-1100.0,0.00044028,30]
[311774690,1705385153871,-350.0,0.00044055,120]
[311774691,1705385153895,-1060.38,0.00044109,30]
[311774692,1705385153921,-510.0,0.00044109,120]
[311774693,1705385153946,-1625.28195698,0.0004413,120]
[311774694,1705385153971,-284846.63429113,0.000442,45]
[311774695,1705385155055,172.92789734,0.00022078,2]
[311774696,1705385156672,172.92789734,0.00022087,2]
[311774697,1705385157439,279.01375138,0.00022077,2]
[311774698,1705385157764,172.92789734,0.00022095,2]
[311774699,1705385161798,1136.22308606,0.00022076,2]
[311774700,1705385164717,207.0,0.00021608,2]
[311774701,1705385169585,2000.0,0.0002143,2]
[311774702,1705385178989,419.76,0.00021372,2]
[311774703,1705385220989,23900.0,0.00021231,2]
[311774704,1705385232168,159.76485359,0.000221,2]
[311774705,1705385243404,250.0,0.00021244,2]
[311774706,1705385247912,318.30087892,0.00022047,2]
[311774707,1705385257280,151.17,0.00021456,2]
[311774708,1705385294191,250.0,0.00021918,2]
[311774709,1705385328453,247.52309592,0.00021924,2]
[311774710,1705385338741,12644.2366,0.00022047,2]
[311774711,1705385405672,157.14,0.00021224,2]
[311774712,1705385405896,157.14,0.00021489,2]
[311774713,1705385406123,157.14,0.00021754,2]
[311774714,1705385406328,157.14,0.0002202,2]
[311774715,1705385412908,16733.61481741,0.00022099,2]
[311774716,1705385415697,200.0,0.00021218,2]
[311774718,1705385433047,-248.66279264,0.00022102,2]
[311774719,1705385433057,-172.92789734,0.00022103,2]
[311774720,1705385433068,-587.0,0.0002211,2]
[311774721,1705385433078,-163.45141243,0.00022111,2]